[Event "LASK Schackstudion IM Tournament"]
[Site "Lund, Sweden"]
[Date "2022.08.17"]
[Round "5.2"]
[White "Kucuksari, Kaan"]
[Black "Jogstad, Martin"]
[Result "1-0"]
[TimeControl "90 minutes + 30 sec increment starting from move 1."]
[WhiteTitle "FM"]
[BlackTitle "FM"]
[WhiteFideId "6380166"]
[BlackFideId "1715364"]
[WhiteElo "2398"]
[BlackElo "2354"]

1. d4 {[%clk 01:30:35]} {[%emt 00:00:25]} d5 {[%clk 01:30:46]} {[%emt
00:00:14]} 2. c4 {[%clk 01:30:55]} {[%emt 00:00:10]} e6 {[%clk 01:31:03]}
{[%emt 00:00:11]} 3. Nf3 {[%clk 01:31:16]} {[%emt 00:00:11]} Nf6 {[%clk
01:31:23]} {[%emt 00:00:09]} 4. g3 {[%clk 01:31:40]} {[%emt 00:00:07]} c5
{[%clk 01:31:40]} {[%emt 00:00:12]} 5. cxd5 {[%clk 01:32:02]} {[%emt 00:00:09]}
exd5 {[%clk 01:32:02]} {[%emt 00:00:08]} 6. Bg2 {[%clk 01:32:26]} {[%emt
00:00:06]} Nc6 {[%clk 01:32:20]} {[%emt 00:00:13]} 7. O-O {[%clk 01:32:49]}
{[%emt 00:00:07]} cxd4 {[%clk 01:32:21]} {[%emt 00:00:29]} 8. Nxd4 {[%clk
01:33:13]} {[%emt 00:00:06]} Bc5 {[%clk 01:32:44]} {[%emt 00:00:07]} 9. Nxc6
{[%clk 01:33:12]} {[%emt 00:00:32]} bxc6 {[%clk 01:33:11]} {[%emt 00:00:02]} 10.
Qc2 {[%clk 01:33:31]} {[%emt 00:00:10]} Nd7 {[%clk 01:33:21]} {[%emt 00:00:20]}
11. Nd2 {[%clk 01:19:11]} {[%emt 00:14:50]} Qf6 {[%clk 01:30:20]} {[%emt
00:03:31]} 12. Nb3 {[%clk 01:10:09]} {[%emt 00:09:33]} Bb6 {[%clk 01:29:41]}
{[%emt 00:01:09]} 13. Be3 {[%clk 01:04:35]} {[%emt 00:06:04]} O-O {[%clk
01:24:02]} {[%emt 00:06:08]} 14. Rac1 {[%clk 00:59:53]} {[%emt 00:05:13]} Ne5
{[%clk 01:12:45]} {[%emt 00:11:47]} 15. Bd4 {[%clk 00:52:20]} {[%emt 00:08:04]}
Rb8 {[%clk 01:08:04]} {[%emt 00:05:10]} 16. Qc3 {[%clk 00:48:36]} {[%emt
00:04:15]} Bxd4 {[%clk 01:08:20]} {[%emt 00:00:14]} 17. Nxd4 {[%clk 00:48:45]}
{[%emt 00:00:21]} Bd7 {[%clk 00:58:52]} {[%emt 00:09:59]} 18. b3 {[%clk
00:44:12]} {[%emt 00:05:04]} Rfe8 {[%clk 00:53:46]} {[%emt 00:05:35]} 19. Qc5
{[%clk 00:34:48]} {[%emt 00:09:53]} a5 {[%clk 00:47:55]} {[%emt 00:06:23]} 20.
Qxa5 {[%clk 00:32:05]} {[%emt 00:03:12]} Qh6 {[%clk 00:39:41]} {[%emt
00:08:44]} 21. Rfd1 {[%clk 00:27:38]} {[%emt 00:04:57]} Ng4 {[%clk 00:27:27]}
{[%emt 00:12:43]} 22. h3 {[%clk 00:27:31]} {[%emt 00:00:38]} Nf6 {[%clk
00:20:13]} {[%emt 00:07:44]} 23. Qd2 {[%clk 00:24:51]} {[%emt 00:03:10]} Qh5
{[%clk 00:20:24]} {[%emt 00:00:19]} 24. h4 {[%clk 00:17:42]} {[%emt 00:07:40]}
Qe5 {[%clk 00:16:49]} {[%emt 00:04:04]} 25. Rxc6 {[%clk 00:14:50]} {[%emt
00:03:22]} Ne4 {[%clk 00:13:12]} {[%emt 00:04:06]} 26. Qe3 {[%clk 00:14:23]}
{[%emt 00:00:58]} Ra8 {[%clk 00:05:18]} {[%emt 00:08:24]} 27. Rc2 {[%clk
00:14:49]} {[%emt 00:00:04]} Qd6 {[%clk 00:04:30]} {[%emt 00:01:17]} 28. Qf4
{[%clk 00:10:10]} {[%emt 00:05:09]} Qb4 {[%clk 00:03:41]} {[%emt 00:01:20]} 29.
Rc7 {[%clk 00:07:54]} {[%emt 00:02:46]} Nf6 {[%clk 00:03:53]} {[%emt 00:00:18]}
30. Rxd7 {[%clk 00:06:47]} {[%emt 00:01:37]} Nxd7 {[%clk 00:03:03]} {[%emt
00:01:20]} 31. Bxd5 {[%clk 00:07:15]} {[%emt 00:00:02]} Rad8 {[%clk 00:01:58]}
{[%emt 00:01:35]} 32. Bxf7+ {[%clk 00:07:03]} {[%emt 00:00:42]} Kh8 {[%clk
00:02:25]} {[%emt 00:00:03]} 33. Bxe8 {[%clk 00:07:28]} {[%emt 00:00:06]} Rxe8
{[%clk 00:02:49]} {[%emt 00:00:06]} 34. Qf7 {[%clk 00:06:16]} {[%emt 00:01:41]}
Nf6 {[%clk 00:02:40]} {[%emt 00:00:40]} 35. Nf5 {[%clk 00:04:10]} {[%emt
00:02:36]} Qg4 {[%clk 00:02:22]} {[%emt 00:00:47]} 36. Nh6 {[%clk 00:03:36]}
{[%emt 00:01:05]} Qg6 {[%clk 00:01:01]} {[%emt 00:01:51]} 37. Qxg6 {[%clk
00:03:45]} {[%emt 00:00:21]} hxg6 {[%clk 00:01:27]} {[%emt 00:00:04]} 38. Nf7+
{[%clk 00:04:09]} {[%emt 00:00:06]} Kg8 {[%clk 00:01:50]} {[%emt 00:00:07]} 39.
Ng5 {[%clk 00:04:33]} {[%emt 00:00:06]} Rxe2 {[%clk 00:02:04]} {[%emt
00:00:17]} 40. Rd8+ {[%clk 00:04:45]} {[%emt 00:00:18]} Ne8 {[%clk 00:02:32]}
{[%emt 00:00:01]} 41. Kf1 {[%clk 00:04:49]} {[%emt 00:00:25]} Re7 {[%clk
00:02:29]} {[%emt 00:00:34]} 42. f3 {[%clk 00:03:05]} {[%emt 00:02:14]} Kf8
{[%clk 00:02:43]} {[%emt 00:00:16]} 43. Ne4 {[%clk 00:02:25]} {[%emt 00:01:11]}
Re6 {[%clk 00:02:55]} {[%emt 00:00:18]} 44. Rd7 {[%clk 00:02:11]} {[%emt
00:00:43]} Ra6 {[%clk 00:02:55]} {[%emt 00:00:30]} 45. a4 {[%clk 00:02:38]}
{[%emt 00:00:03]} Rb6 {[%clk 00:03:22]} {[%emt 00:00:04]} 46. Nc5 {[%clk
00:01:42]} {[%emt 00:01:26]} Nf6 {[%clk 00:03:46]} {[%emt 00:00:06]} 47. Rb7
{[%clk 00:01:19]} {[%emt 00:00:53]} Rd6 {[%clk 00:03:58]} {[%emt 00:00:17]} 48.
a5 {[%clk 00:01:33]} {[%emt 00:00:16]} Nh5 {[%clk 00:03:16]} {[%emt 00:01:13]}
49. a6 {[%clk 00:01:29]} {[%emt 00:00:34]} Nxg3+ {[%clk 00:02:55]} {[%emt
00:00:51]} 50. Kf2 {[%clk 00:01:55]} {[%emt 00:00:03]} Nh1+ {[%clk 00:02:57]}
{[%emt 00:00:29]} 51. Kg2 {[%clk 00:02:16]} {[%emt 00:00:08]} 1-0

[Event "LASK Schackstudion IM Tournament"]
[Site "Lund, Sweden"]
[Date "2022.08.17"]
[Round "5.3"]
[White "Nord, Alexander"]
[Black "Storme, Isak"]
[Result "0-1"]
[TimeControl "90 minutes + 30 sec increment starting from move 1."]
[WhiteTitle "CM"]
[BlackTitle "FM"]
[WhiteFideId "1738135"]
[BlackFideId "1728113"]
[WhiteElo "2227"]
[BlackElo "2416"]

1. d4 {[%clk 01:30:57]} {[%emt 00:00:02]} Nf6 {[%clk 01:30:52]} {[%emt
00:00:08]} 2. Nf3 {[%clk 01:31:24]} {[%emt 00:00:03]} e6 {[%clk 01:31:14]}
{[%emt 00:00:07]} 3. g3 {[%clk 01:31:47]} {[%emt 00:00:08]} b5 {[%clk
01:31:33]} {[%emt 00:00:10]} 4. Bg2 {[%clk 01:31:44]} {[%emt 00:00:33]} Bb7
{[%clk 01:31:55]} {[%emt 00:00:08]} 5. O-O {[%clk 01:31:48]} {[%emt 00:00:27]}
c5 {[%clk 01:32:10]} {[%emt 00:00:15]} 6. c3 {[%clk 01:28:01]} {[%emt
00:04:17]} Be7 {[%clk 01:31:56]} {[%emt 00:00:43]} 7. Nbd2 {[%clk 01:26:02]}
{[%emt 00:02:30]} O-O {[%clk 01:30:00]} {[%emt 00:02:24]} 8. Re1 {[%clk
01:25:43]} {[%emt 00:00:50]} cxd4 {[%clk 01:29:29]} {[%emt 00:01:02]} 9. cxd4
{[%clk 01:26:04]} {[%emt 00:00:09]} Qb6 {[%clk 01:28:27]} {[%emt 00:01:31]} 10.
e4 {[%clk 01:19:27]} {[%emt 00:07:06]} Nc6 {[%clk 01:28:50]} {[%emt 00:00:08]}
11. Nf1 {[%clk 01:09:59]} {[%emt 00:09:58]} d5 {[%clk 01:22:09]} {[%emt
00:07:11]} 12. e5 {[%clk 01:07:07]} {[%emt 00:03:22]} Ne4 {[%clk 01:22:21]}
{[%emt 00:00:17]} 13. a3 {[%clk 01:05:43]} {[%emt 00:01:55]} b4 {[%clk
01:20:27]} {[%emt 00:02:24]} 14. Be3 {[%clk 01:04:56]} {[%emt 00:01:16]} Rac8
{[%clk 01:19:13]} {[%emt 00:01:43]} 15. N3d2 {[%clk 00:55:22]} {[%emt
00:10:04]} Nxd2 {[%clk 01:17:55]} {[%emt 00:01:49]} 16. Nxd2 {[%clk 00:52:54]}
{[%emt 00:02:58]} Ba6 {[%clk 01:14:29]} {[%emt 00:03:55]} 17. h4 {[%clk
00:47:27]} {[%emt 00:05:57]} Na5 {[%clk 01:01:08]} {[%emt 00:13:51]} 18. Qg4
{[%clk 00:37:04]} {[%emt 00:10:53]} Bd3 {[%clk 01:00:56]} {[%emt 00:00:41]} 19.
Bf1 {[%clk 00:34:01]} {[%emt 00:03:34]} Bf5 {[%clk 01:00:52]} {[%emt 00:00:33]}
20. Qe2 {[%clk 00:31:45]} {[%emt 00:02:46]} h6 {[%clk 00:57:57]} {[%emt
00:03:26]} 21. axb4 {[%clk 00:21:43]} {[%emt 00:10:33]} Bxb4 {[%clk 00:57:47]}
{[%emt 00:00:39]} 22. g4 {[%clk 00:17:08]} {[%emt 00:05:05]} Bh7 {[%clk
00:57:30]} {[%emt 00:00:46]} 23. Kg2 {[%clk 00:13:32]} {[%emt 00:04:07]} Rc2
{[%clk 00:54:49]} {[%emt 00:03:11]} 24. g5 {[%clk 00:12:32]} {[%emt 00:01:30]}
hxg5 {[%clk 00:53:52]} {[%emt 00:01:27]} 25. hxg5 {[%clk 00:12:32]} {[%emt
00:00:30]} Bxd2 {[%clk 00:53:28]} {[%emt 00:00:55]} 26. Bxd2 {[%clk 00:12:19]}
{[%emt 00:00:43]} Nb3 {[%clk 00:53:40]} {[%emt 00:00:16]} 27. Qh5 {[%clk
00:11:14]} {[%emt 00:01:35]} Bg6 {[%clk 00:53:55]} {[%emt 00:00:15]} 28. Qh3
{[%clk 00:11:18]} {[%emt 00:00:26]} Rxd2 {[%clk 00:53:28]} {[%emt 00:00:57]} 29.
Bc4 {[%clk 00:11:23]} {[%emt 00:00:25]} Qxd4 {[%clk 00:53:01]} {[%emt
00:00:57]} 30. Rh1 {[%clk 00:11:08]} {[%emt 00:00:45]} Qxf2# {[%clk 00:53:11]}
{[%emt 00:00:21]} 0-1

[Event "LASK Schackstudion IM Tournament"]
[Site "Lund, Sweden"]
[Date "2022.08.17"]
[Round "5.4"]
[White "Magnusson, Jorgen"]
[Black "Jacobsen, Mikkel Manosri"]
[Result "0-1"]
[TimeControl "90 minutes + 30 sec increment starting from move 1."]
[WhiteTitle "FM"]
[BlackTitle "FM"]
[WhiteFideId "1700880"]
[BlackFideId "1444514"]
[WhiteElo "2292"]
[BlackElo "2320"]

1. f4 d5 {[%emt 00:11:34]} 2. g3 {[%emt 00:00:15]} h5 {[%emt 00:00:33]} 3. Bg2
{[%emt 00:05:17]} h4 {[%emt 00:02:58]} 4. c4 {[%emt 00:01:35]} c6 {[%emt
00:05:03]} 5. cxd5 {[%emt 00:02:17]} cxd5 {[%emt 00:00:07]} 6. Nc3 {[%emt
00:00:41]} Nf6 {[%emt 00:04:59]} 7. Qb3 {[%emt 00:00:54]} e6 {[%emt 00:01:23]}
8. Nf3 {[%emt 00:01:55]} h3 {[%emt 00:02:42]} 9. Bf1 {[%emt 00:00:06]} Nc6
{[%emt 00:02:01]} 10. d4 {[%emt 00:05:38]} Bb4 {[%emt 00:05:39]} 11. Bd2 {[%emt
00:10:12]} a6 {[%emt 00:07:40]} 12. e3 {[%emt 00:02:33]} b5 {[%emt 00:03:44]}
13. Ng5 {[%emt 00:15:03]} Be7 {[%emt 00:03:32]} 14. Bxh3 {[%emt 00:07:48]} b4
{[%emt 00:09:48]} 15. Ne2 {[%emt 00:03:44]} a5 {[%emt 00:02:53]} 16. Bf1 {[%emt
00:12:04]} Ba6 {[%emt 00:05:18]} 17. Nc1 {[%emt 00:07:17]} Nh5 {[%emt
00:01:23]} 18. Nh3 {[%emt 00:01:46]} Bxf1 {[%emt 00:02:14]} 19. Kxf1 {[%emt
00:00:56]} g5 {[%emt 00:01:25]} 20. Nd3 {[%emt 00:03:31]} gxf4 {[%emt
00:03:01]} 21. gxf4 {[%emt 00:00:24]} Qb6 {[%emt 00:06:38]} 22. Nhf2 {[%emt
00:01:35]} Ng7 {[%emt 00:02:39]} 23. Qa4 {[%emt 00:01:24]} f6 {[%emt 00:02:37]}
24. Rc1 {[%emt 00:01:22]} Rc8 {[%emt 00:00:19]} 25. Nc5 {[%emt 00:00:41]} Kf7
{[%emt 00:00:38]} 26. Rg1 {[%emt 00:02:10]} Nf5 {[%emt 00:03:34]} 27. Ng4
{[%emt 00:01:00]} Ncxd4 {[%emt 00:09:20]} 28. exd4 {[%emt 00:00:13]} Nxd4
{[%emt 00:00:03]} 29. Nd3 {[%emt 00:01:05]} Nf3 {[%emt 00:00:06]} 30. Be3
{[%emt 00:02:04]} Rxc1+ {[%emt 00:03:54]} 31. Nxc1 {[%emt 00:00:20]} Nxh2+
{[%emt 00:00:24]} 32. Ke2 {[%emt 00:03:26]} d4 {[%emt 00:00:33]} 33. Bf2 {[%emt
00:02:34]} Qb7 {[%emt 00:01:12]} 34. Nxh2 {[%emt 00:00:43]} Qe4+ {[%emt
00:00:21]} 35. Kf1 {[%emt 00:01:53]} Rxh2 {[%emt 00:00:05]} 36. Qd1 {[%emt
00:00:33]} Qxf4 {[%emt 00:00:19]} 37. Nd3 {[%emt 00:00:19]} Qf5 {[%emt
00:01:47]} 38. Rg3 {[%emt 00:01:28]} Bd6 {[%emt 00:02:48]} 39. Rf3 {[%emt
00:01:43]} Rh1+ {[%emt 00:01:01]} 40. Bg1 {[%emt 00:00:15]} Qg5 {[%emt
00:00:56]} 41. Kf2 {[%emt 00:00:35]} Bh2 {[%emt 00:00:21]} 0-1

[Event "LASK Schackstudion IM Tournament"]
[Site "Lund, Sweden"]
[Date "2022.08.18"]
[Round "6.1"]
[White "Jogstad, Martin"]
[Black "Jepson, Christian"]
[Result "1/2-1/2"]
[TimeControl "90 minutes + 30 sec increment starting from move 1."]
[WhiteTitle "FM"]
[BlackTitle "IM"]
[WhiteFideId "1715364"]
[BlackFideId "1701185"]
[WhiteElo "2354"]
[BlackElo "2395"]

1. d4 {[%clk 01:30:56]} Nf6 {[%clk 01:19:44]} {[%emt 00:11:17]} 2. c4 {[%clk
01:31:11]} {[%emt 00:00:14]} c5 {[%clk 01:20:11]} {[%emt 00:00:05]} 3. d5
{[%clk 01:31:28]} {[%emt 00:00:12]} g6 {[%clk 01:20:37]} {[%emt 00:00:05]} 4.
Nc3 {[%clk 01:31:49]} {[%emt 00:00:08]} Bg7 {[%clk 01:21:02]} {[%emt 00:00:06]}
5. e4 {[%clk 01:32:07]} {[%emt 00:00:12]} d6 {[%clk 01:21:26]} {[%emt
00:00:06]} 6. Nf3 {[%clk 01:32:20]} {[%emt 00:00:16]} O-O {[%clk 01:21:17]}
{[%emt 00:00:39]} 7. h3 {[%clk 01:32:39]} {[%emt 00:00:11]} e6 {[%clk
01:21:34]} {[%emt 00:00:13]} 8. Bd3 {[%clk 01:33:02]} {[%emt 00:00:08]} Na6
{[%clk 01:20:25]} {[%emt 00:01:40]} 9. O-O {[%clk 01:32:54]} {[%emt 00:00:36]}
e5 {[%clk 01:20:28]} {[%emt 00:00:29]} 10. Re1 {[%clk 00:50:35]} {[%emt
00:42:48]} Ne8 {[%clk 01:12:36]} {[%emt 00:08:22]} 11. Bf1 {[%clk 00:50:36]}
{[%emt 00:00:30]} f5 {[%clk 01:12:25]} {[%emt 00:00:41]} 12. exf5 {[%clk
00:50:48]} {[%emt 00:00:17]} gxf5 {[%clk 01:12:49]} {[%emt 00:00:05]} 13. Ng5
{[%clk 00:51:04]} {[%emt 00:00:14]} Nac7 {[%clk 01:11:50]} {[%emt 00:01:30]} 14.
Qh5 {[%clk 00:39:27]} {[%emt 00:12:06]} Nf6 {[%clk 01:10:38]} {[%emt 00:01:43]}
15. Qh4 {[%clk 00:39:48]} {[%emt 00:00:09]} h6 {[%clk 00:54:59]} {[%emt
00:16:09]} 16. Ne6 {[%clk 00:36:24]} {[%emt 00:03:54]} Bxe6 {[%clk 00:49:41]}
{[%emt 00:05:48]} 17. dxe6 {[%clk 00:36:52]} {[%emt 00:00:02]} Nxe6 {[%clk
00:50:00]} {[%emt 00:00:10]} 18. Bxh6 {[%clk 00:35:22]} {[%emt 00:02:00]} Nd4
{[%clk 00:49:15]} {[%emt 00:01:15]} 19. Bxg7 {[%clk 00:24:47]} {[%emt
00:11:05]} Kxg7 {[%clk 00:49:38]} {[%emt 00:00:07]} 20. Nb5 {[%clk 00:21:33]}
{[%emt 00:03:44]} Ne4 {[%clk 00:34:11]} {[%emt 00:15:56]} 21. Rxe4 {[%clk
00:17:41]} {[%emt 00:04:22]} fxe4 {[%clk 00:34:30]} {[%emt 00:00:11]} 22. Qg4+
{[%clk 00:14:12]} {[%emt 00:03:59]} Kh8 {[%clk 00:31:44]} {[%emt 00:03:16]} 23.
Qh5+ {[%clk 00:13:09]} {[%emt 00:01:34]} Kg7 {[%clk 00:32:04]} {[%emt
00:00:10]} 24. Qg4+ {[%clk 00:13:35]} {[%emt 00:00:04]} Kh8 {[%clk 00:23:33]}
{[%emt 00:09:01]} 25. Qxe4 {[%clk 00:05:46]} {[%emt 00:08:18]} Qf6 {[%clk
00:22:25]} {[%emt 00:01:39]} 26. Nxd4 {[%clk 00:02:07]} {[%emt 00:04:10]} Qxf2+
{[%clk 00:21:49]} {[%emt 00:01:06]} 27. Kh1 {[%clk 00:02:36]} Qxd4 {[%clk
00:10:26]} {[%emt 00:11:52]} 28. Qg6 {[%clk 00:03:05]} {[%emt 00:00:01]} Qh4
{[%clk 00:10:50]} {[%emt 00:00:07]} 29. Qxd6 {[%clk 00:01:59]} {[%emt
00:01:36]} Rae8 {[%clk 00:10:34]} {[%emt 00:00:46]} 30. Qxc5 {[%clk 00:02:05]}
{[%emt 00:00:25]} b6 {[%clk 00:10:44]} {[%emt 00:00:20]} 31. Qe3 {[%clk
00:01:09]} {[%emt 00:01:24]} Rf2 {[%clk 00:07:34]} {[%emt 00:03:41]} 32. g3
{[%clk 00:00:50]} {[%emt 00:00:50]} Qf6 {[%clk 00:07:43]} {[%emt 00:00:22]} 33.
Bg2 {[%clk 00:01:15]} {[%emt 00:00:04]} Rd8 {[%clk 00:06:49]} {[%emt 00:01:23]}
34. Qe4 {[%clk 00:01:00]} {[%emt 00:00:45]} Rdd2 {[%clk 00:06:09]} {[%emt
00:01:10]} 35. Rg1 {[%clk 00:01:25]} {[%emt 00:00:05]} Rxb2 {[%clk 00:05:53]}
{[%emt 00:00:47]} 36. Qa8+ {[%clk 00:01:07]} {[%emt 00:00:48]} Qf8 {[%clk
00:06:16]} {[%emt 00:00:07]} 37. Qe4 {[%clk 00:01:03]} {[%emt 00:00:34]} Qf5
{[%clk 00:05:35]} {[%emt 00:01:11]} 38. Qh4+ {[%clk 00:01:25]} {[%emt
00:00:08]} Kg7 {[%clk 00:05:51]} {[%emt 00:00:14]} 39. Qe7+ {[%clk 00:01:42]}
{[%emt 00:00:13]} Kh6 {[%clk 00:05:57]} {[%emt 00:00:24]} 40. Rd1 {[%clk
00:01:12]} {[%emt 00:01:00]} Rbd2 {[%clk 00:05:18]} {[%emt 00:01:09]} 41. Rxd2
{[%clk 00:01:30]} {[%emt 00:00:12]} Rxd2 {[%clk 00:05:35]} {[%emt 00:00:13]} 42.
Qh4+ {[%clk 00:01:37]} {[%emt 00:00:23]} Kg7 {[%clk 00:05:17]} {[%emt
00:00:48]} 43. Qe7+ {[%clk 00:02:03]} {[%emt 00:00:04]} Kh6 {[%clk 00:03:19]}
{[%emt 00:02:28]} 44. Qh4+ {[%clk 00:02:28]} {[%emt 00:00:04]} Kg7 {[%clk
00:03:45]} {[%emt 00:00:05]} 45. Qe7+ {[%clk 00:02:56]} {[%emt 00:00:03]} Kh6
{[%clk 00:04:04]} {[%emt 00:00:10]} 46. Qh4+ {[%clk 00:03:22]} {[%emt
00:00:04]} 1/2-1/2

[Event "LASK Schackstudion IM Tournament"]
[Site "Lund, Sweden"]
[Date "2022.08.18"]
[Round "6.2"]
[White "Jacobsen, Mikkel Manosri"]
[Black "Nord, Alexander"]
[Result "1-0"]
[TimeControl "90 minutes + 30 sec increment starting from move 1."]
[WhiteTitle "FM"]
[BlackTitle "CM"]
[WhiteFideId "1444514"]
[BlackFideId "1738135"]
[WhiteElo "2320"]
[BlackElo "2227"]

1. d4 {[%clk 01:30:56]} {[%emt 00:00:03]} Nf6 {[%clk 01:30:54]} {[%emt
00:00:06]} 2. Nf3 {[%clk 01:31:23]} {[%emt 00:00:04]} e6 {[%clk 01:31:19]}
{[%emt 00:00:04]} 3. c4 {[%clk 01:31:50]} {[%emt 00:00:04]} b6 {[%clk
01:31:44]} {[%emt 00:00:05]} 4. g3 {[%clk 01:32:11]} {[%emt 00:00:08]} Bb7
{[%clk 01:32:06]} {[%emt 00:00:08]} 5. Bg2 {[%clk 01:32:37]} {[%emt 00:00:05]}
Be7 {[%clk 01:32:30]} {[%emt 00:00:06]} 6. O-O {[%clk 01:32:57]} {[%emt
00:00:10]} O-O {[%clk 01:32:49]} {[%emt 00:00:10]} 7. Re1 {[%clk 01:32:37]}
{[%emt 00:00:50]} Na6 {[%clk 01:30:09]} {[%emt 00:03:11]} 8. Nc3 {[%clk
01:30:40]} {[%emt 00:02:27]} Ne4 {[%clk 01:28:20]} {[%emt 00:02:18]} 9. Qc2
{[%clk 01:31:01]} {[%emt 00:00:09]} f5 {[%clk 01:21:07]} {[%emt 00:07:43]} 10.
Nd2 {[%clk 01:30:48]} {[%emt 00:00:42]} d5 {[%clk 01:14:26]} {[%emt 00:07:12]}
11. Ndxe4 {[%clk 01:27:10]} {[%emt 00:04:09]} fxe4 {[%clk 01:09:35]} {[%emt
00:05:21]} 12. cxd5 {[%clk 01:23:57]} {[%emt 00:03:44]} exd5 {[%clk 01:08:39]}
{[%emt 00:01:25]} 13. f3 {[%clk 01:23:55]} {[%emt 00:00:31]} exf3 {[%clk
01:04:11]} {[%emt 00:04:59]} 14. exf3 {[%clk 01:23:44]} {[%emt 00:00:41]} Bf6
{[%clk 01:01:28]} {[%emt 00:03:12]} 15. Qa4 {[%clk 01:19:40]} {[%emt 00:04:35]}
c5 {[%clk 00:59:45]} {[%emt 00:02:13]} 16. Be3 {[%clk 01:19:36]} {[%emt
00:00:33]} Rc8 {[%clk 00:39:19]} {[%emt 00:20:57]} 17. f4 {[%clk 01:02:39]}
{[%emt 00:17:27]} cxd4 {[%clk 00:28:23]} {[%emt 00:11:26]} 18. Bxd4 {[%clk
01:02:59]} {[%emt 00:00:10]} Rc4 {[%clk 00:24:28]} {[%emt 00:04:25]} 19. Bxf6
{[%clk 01:03:02]} {[%emt 00:00:28]} Qxf6 {[%clk 00:24:46]} {[%emt 00:00:12]} 20.
Qd1 {[%clk 01:01:29]} {[%emt 00:02:02]} Rd4 {[%clk 00:22:52]} {[%emt 00:02:25]}
21. Bxd5+ {[%clk 00:53:32]} {[%emt 00:08:27]} Kh8 {[%clk 00:23:11]} {[%emt
00:00:11]} 22. Ne4 {[%clk 00:52:48]} {[%emt 00:01:14]} Rxd1 {[%clk 00:09:31]}
{[%emt 00:14:11]} 23. Nxf6 {[%clk 00:53:16]} {[%emt 00:00:02]} Rxa1 {[%clk
00:08:02]} {[%emt 00:01:59]} 24. Rxa1 {[%clk 00:53:38]} {[%emt 00:00:08]} Bxd5
{[%clk 00:08:25]} {[%emt 00:00:08]} 25. Nxd5 {[%clk 00:54:03]} {[%emt
00:00:04]} Rd8 {[%clk 00:08:49]} {[%emt 00:00:05]} 26. Nc3 {[%clk 00:51:21]}
{[%emt 00:03:13]} Kg8 {[%clk 00:07:00]} {[%emt 00:02:18]} 27. Rd1 {[%clk
00:51:39]} {[%emt 00:00:12]} Rxd1+ {[%clk 00:07:08]} {[%emt 00:00:22]} 28. Nxd1
{[%clk 00:52:07]} {[%emt 00:00:02]} Kf7 {[%clk 00:07:28]} {[%emt 00:00:09]} 29.
Kf2 {[%clk 00:52:02]} {[%emt 00:00:35]} Ke6 {[%clk 00:07:36]} {[%emt 00:00:22]}
30. Nc3 {[%clk 00:52:14]} {[%emt 00:00:19]} Nb4 {[%clk 00:07:26]} {[%emt
00:00:40]} 31. Ke3 {[%clk 00:51:57]} {[%emt 00:00:45]} h5 {[%clk 00:06:10]}
{[%emt 00:01:47]} 32. Ke4 {[%clk 00:51:43]} {[%emt 00:00:44]} g6 {[%clk
00:05:35]} {[%emt 00:01:05]} 33. a3 {[%clk 00:51:51]} {[%emt 00:00:23]} Na6
{[%clk 00:05:32]} {[%emt 00:00:33]} 34. b4 {[%clk 00:51:42]} {[%emt 00:00:39]}
Nc7 {[%clk 00:05:48]} {[%emt 00:00:14]} 35. Ne2 {[%clk 00:51:23]} {[%emt
00:00:49]} a5 {[%clk 00:03:55]} {[%emt 00:02:23]} 36. Nd4+ {[%clk 00:50:57]}
{[%emt 00:00:56]} Kd6 {[%clk 00:04:16]} {[%emt 00:00:09]} 37. f5 {[%clk
00:50:52]} {[%emt 00:00:35]} gxf5+ {[%clk 00:04:31]} {[%emt 00:00:16]} 38.
Nxf5+ {[%clk 00:51:19]} {[%emt 00:00:03]} Kc6 {[%clk 00:04:33]} {[%emt
00:00:28]} 39. Nd4+ {[%clk 00:49:33]} {[%emt 00:02:16]} Kd6 {[%clk 00:05:01]}
{[%emt 00:00:02]} 40. h4 {[%clk 00:48:20]} {[%emt 00:01:42]} axb4 {[%clk
00:04:32]} {[%emt 00:01:00]} 41. axb4 {[%clk 00:48:48]} {[%emt 00:00:02]} Nd5
{[%clk 00:03:52]} {[%emt 00:01:10]} 42. Nc2 {[%clk 00:44:57]} {[%emt 00:04:21]}
Nc3+ {[%clk 00:03:55]} {[%emt 00:00:27]} 43. Kf5 {[%clk 00:44:16]} {[%emt
00:01:11]} Ne2 {[%clk 00:04:15]} {[%emt 00:00:09]} 44. g4 {[%clk 00:44:41]}
{[%emt 00:00:06]} hxg4 {[%clk 00:04:12]} {[%emt 00:00:34]} 45. Kxg4 {[%clk
00:44:32]} {[%emt 00:00:38]} Ke6 {[%clk 00:04:31]} {[%emt 00:00:09]} 46. Kg5
{[%clk 00:44:37]} {[%emt 00:00:26]} Ng3 {[%clk 00:03:21]} {[%emt 00:01:41]} 47.
Ne3 {[%clk 00:43:09]} {[%emt 00:01:57]} Ne4+ {[%clk 00:03:06]} {[%emt
00:00:44]} 48. Kg6 {[%clk 00:43:37]} {[%emt 00:00:03]} Ng3 {[%clk 00:02:10]}
{[%emt 00:01:26]} 49. Nc4 {[%clk 00:38:34]} {[%emt 00:05:34]} b5 {[%clk
00:02:02]} {[%emt 00:00:39]} 50. Na5 {[%clk 00:39:02]} {[%emt 00:00:02]} Ke7
{[%clk 00:00:49]} {[%emt 00:01:43]} 51. h5 {[%clk 00:39:19]} {[%emt 00:00:13]}
Kf8 {[%clk 00:01:14]} {[%emt 00:00:05]} 52. h6 {[%clk 00:39:13]} {[%emt
00:00:36]} Kg8 {[%clk 00:01:19]} {[%emt 00:00:25]} 53. Nc6 {[%clk 00:39:37]}
{[%emt 00:00:06]} Ne2 {[%clk 00:01:07]} {[%emt 00:00:42]} 54. h7+ {[%clk
00:39:33]} {[%emt 00:00:34]} Kh8 {[%clk 00:01:33]} {[%emt 00:00:04]} 55. Ne5
{[%clk 00:39:59]} {[%emt 00:00:03]} 1-0